[Event "Live Chess"]
[Site "Chess.com"]
[Date "2023.05.20"]
[Round "-"]
[White "wadsy27"]
[Black "BJAW87"]
[Result "1-0"]
[WhiteElo "2564"]
[BlackElo "1428"]
[TimeControl "300"]
[EndTime "15:42:15 PDT"]
[Termination "wadsy27 won by resignation"]

1. d4 {[%clk 0:04:47.9]} 1... Nf6 {[%clk 0:04:58.6]} 2. c4 {[%clk 0:04:45.7]}
2... g6 {[%clk 0:04:57.6]} 3. Nf3 {[%clk 0:04:43.1]} 3... Bg7 {[%clk 0:04:56.5]}
4. g3 {[%clk 0:04:42.6]} 4... O-O {[%clk 0:04:53.6]} 5. Bg2 {[%clk 0:04:42.3]}
5... d6 {[%clk 0:04:51.7]} 6. O-O {[%clk 0:04:41.7]} 6... Nbd7 {[%clk
0:04:48.8]} 7. Nc3 {[%clk 0:04:40.4]} 7... c6 {[%clk 0:04:45.9]} 8. e4 {[%clk
0:04:38.6]} 8... a6 {[%clk 0:04:17.7]} 9. Re1 {[%clk 0:04:35.7]} 9... b5 {[%clk
0:04:15]} 10. e5 {[%clk 0:04:30.6]} 10... dxe5 {[%clk 0:04:02.2]} 11. dxe5
{[%clk 0:04:28.8]} 11... Ng4 {[%clk 0:03:54.2]} 12. e6 {[%clk 0:04:22.9]} 12...
Nde5 {[%clk 0:03:15.2]} 13. Nxe5 {[%clk 0:04:08.1]} 13... Nxe5 {[%clk
0:02:45.9]} 14. exf7+ {[%clk 0:04:05.2]} 14... Nxf7 {[%clk 0:02:34.9]} 15. Bxc6
{[%clk 0:04:03.2]} 15... Rb8 {[%clk 0:02:26.5]} 16. Bf4 {[%clk 0:03:51.3]} 16...
e5 {[%clk 0:02:17]} 17. Be3 {[%clk 0:03:46.6]} 17... bxc4 {[%clk 0:02:15]} 18.
Qe2 {[%clk 0:03:38.9]} 18... Qd3 {[%clk 0:02:01.1]} 19. Bd5 {[%clk 0:03:27.9]}
19... Qxe2 {[%clk 0:01:55.8]} 20. Rxe2 {[%clk 0:03:26.1]} 20... Rb4 {[%clk
0:01:48.1]} 21. Bc5 {[%clk 0:03:23.6]} 21... Bg4 {[%clk 0:01:31]} 22. Bxb4
{[%clk 0:03:21]} 22... Bxe2 {[%clk 0:01:29.9]} 23. Bxf8 {[%clk 0:03:20]} 23...
Bxf8 {[%clk 0:01:26.4]} 24. Bxf7+ {[%clk 0:03:18.8]} 24... Kxf7 {[%clk
0:01:25.4]} 25. Nxe2 {[%clk 0:03:18.7]} 25... Ke6 {[%clk 0:01:19.4]} 26. Rc1
{[%clk 0:03:16.2]} 26... Kd5 {[%clk 0:01:17.5]} 27. Nc3+ {[%clk 0:03:15.5]}
27... Kd4 {[%clk 0:01:16.4]} 28. Rd1+ {[%clk 0:03:14.2]} 28... Kc5 {[%clk
0:01:14.7]} 29. Rd5+ {[%clk 0:03:14.1]} 29... Kb4 {[%clk 0:01:11.1]} 30. Rxe5
{[%clk 0:03:12.7]} 30... Bg7 {[%clk 0:01:10.6]} 31. Re3 {[%clk 0:03:08.4]} 31...
a5 {[%clk 0:01:05.9]} 32. f4 {[%clk 0:03:05.4]} 32... a4 {[%clk 0:01:02]} 33. g4
{[%clk 0:03:04.4]} 33... a3 {[%clk 0:01:00.6]} 34. bxa3+ {[%clk 0:03:03.7]}
34... Kxa3 {[%clk 0:00:59.8]} 35. Nd5+ {[%clk 0:03:02.6]} 35... Kxa2 {[%clk
0:00:58]} 36. Rf3 {[%clk 0:03:00.5]} 36... c3 {[%clk 0:00:56.2]} 37. Nxc3+
{[%clk 0:02:59.1]} 37... Bxc3 {[%clk 0:00:54.2]} 38. Rxc3 {[%clk 0:02:57.8]}
38... Kb2 {[%clk 0:00:54.1]} 39. Re3 {[%clk 0:02:57]} 39... Kc2 {[%clk
0:00:53.2]} 40. f5 {[%clk 0:02:55.4]} 1-0

[Event "Live Chess"]
[Site "Chess.com"]
[Date "2023.05.20"]
[Round "-"]
[White "CeladonFish"]
[Black "HoarseyHorsey"]
[Result "0-1"]
[WhiteElo "1136"]
[BlackElo "1443"]
[TimeControl "300"]
[EndTime "15:42:18 PDT"]
[Termination "HoarseyHorsey won by checkmate"]

1. d3 {[%clk 0:04:59.8]} 1... e5 {[%clk 0:04:46.7]} 2. c4 {[%clk 0:04:58.6]}
2... Nf6 {[%clk 0:04:45.5]} 3. e4 {[%clk 0:04:56.8]} 3... Bc5 {[%clk 0:04:39.4]}
4. Nc3 {[%clk 0:04:54.5]} 4... O-O {[%clk 0:04:31.1]} 5. Qe2 {[%clk 0:04:52.7]}
5... d6 {[%clk 0:04:22.5]} 6. Be3 {[%clk 0:04:51.5]} 6... Bxe3 {[%clk
0:04:21.2]} 7. Qxe3 {[%clk 0:04:50.2]} 7... Bg4 {[%clk 0:04:18.6]} 8. Be2 {[%clk
0:04:48.6]} 8... Be6 {[%clk 0:04:14.9]} 9. Nf3 {[%clk 0:04:46]} 9... h6 {[%clk
0:04:12.8]} 10. O-O {[%clk 0:04:45.1]} 10... Nbd7 {[%clk 0:04:11.6]} 11. d4
{[%clk 0:04:40.5]} 11... c6 {[%clk 0:04:04.8]} 12. d5 {[%clk 0:04:38]} 12...
cxd5 {[%clk 0:04:04.1]} 13. cxd5 {[%clk 0:04:36.4]} 13... Bg4 {[%clk 0:04:02.9]}
14. h3 {[%clk 0:04:34]} 14... Bh5 {[%clk 0:04:00.8]} 15. Nb5 {[%clk 0:04:17.3]}
15... a6 {[%clk 0:03:54.1]} 16. Nxd6 {[%clk 0:04:16.3]} 16... Nb6 {[%clk
0:03:46.3]} 17. Nxb7 {[%clk 0:04:12.9]} 17... Qc7 {[%clk 0:03:40.4]} 18. Nc5
{[%clk 0:04:05.8]} 18... Rac8 {[%clk 0:03:29.9]} 19. Rfc1 {[%clk 0:03:56]} 19...
Qd6 {[%clk 0:03:26.9]} 20. b4 {[%clk 0:03:52.5]} 20... Nbd7 {[%clk 0:03:13.1]}
21. Nxd7 {[%clk 0:03:49.1]} 21... Qxd7 {[%clk 0:03:08.7]} 22. Rxc8 {[%clk
0:03:46.1]} 22... Rxc8 {[%clk 0:03:08.6]} 23. Bxa6 {[%clk 0:03:36.5]} 23... Rc2
{[%clk 0:03:00.7]} 24. b5 {[%clk 0:03:21.5]} 24... Rc4 {[%clk 0:02:29.7]} 25. b6
{[%clk 0:03:15.8]} 25... Rxe4 {[%clk 0:02:28.4]} 26. Qc3 {[%clk 0:03:05.4]}
26... Nxd5 {[%clk 0:02:22.1]} 27. Qd3 {[%clk 0:02:41.1]} 27... Bxf3 {[%clk
0:02:14.9]} 28. gxf3 {[%clk 0:02:36.8]} 28... Rd4 {[%clk 0:02:07.7]} 29. b7
{[%clk 0:02:16.2]} 29... Rxd3 {[%clk 0:01:18]} 30. b8=Q+ {[%clk 0:02:13.8]}
30... Kh7 {[%clk 0:01:15.3]} 31. Bxd3+ {[%clk 0:02:12.3]} 31... g6 {[%clk
0:01:11.7]} 32. Qxe5 {[%clk 0:02:08.9]} 32... Nb4 {[%clk 0:01:00]} 33. Bc4
{[%clk 0:01:58.1]} 33... Qxh3 {[%clk 0:00:46.7]} 34. Bxf7 {[%clk 0:01:47]} 34...
Qxf3 {[%clk 0:00:34.4]} 35. Qe8 {[%clk 0:01:42.8]} 35... Qg4+ {[%clk 0:00:30]}
36. Kf1 {[%clk 0:01:38.6]} 36... Qh3+ {[%clk 0:00:27.8]} 37. Ke2 {[%clk
0:01:37.7]} 37... Qd3+ {[%clk 0:00:24.8]} 38. Ke1 {[%clk 0:01:35.3]} 38... Nc2#
{[%clk 0:00:20.4]} 0-1

[Event "Live Chess"]
[Site "Chess.com"]
[Date "2023.05.20"]
[Round "-"]
[White "DaveL5678"]
[Black "Olisingapore"]
[Result "0-1"]
[WhiteElo "1023"]
[BlackElo "1850"]
[TimeControl "300"]
[EndTime "15:42:25 PDT"]
[Termination "Olisingapore won by checkmate"]

1. e4 {[%clk 0:04:57.7]} 1... c5 {[%clk 0:04:59.2]} 2. b3 {[%clk 0:04:55.8]}
2... d6 {[%clk 0:04:57.7]} 3. Bb2 {[%clk 0:04:54.4]} 3... Nc6 {[%clk 0:04:56.3]}
4. f4 {[%clk 0:04:51.3]} 4... Nf6 {[%clk 0:04:54.1]} 5. Nc3 {[%clk 0:04:43.5]}
5... g6 {[%clk 0:04:53.2]} 6. Nf3 {[%clk 0:04:40.9]} 6... Bg7 {[%clk 0:04:52.7]}
7. e5 {[%clk 0:04:35.1]} 7... dxe5 {[%clk 0:04:51.1]} 8. fxe5 {[%clk 0:04:34]}
8... Nd7 {[%clk 0:04:50.7]} 9. Bb5 {[%clk 0:04:20.1]} 9... O-O {[%clk
0:04:42.4]} 10. O-O {[%clk 0:04:11.5]} 10... Ndxe5 {[%clk 0:04:38.4]} 11. Nxe5
{[%clk 0:04:04.9]} 11... Nxe5 {[%clk 0:04:38.3]} 12. Na4 {[%clk 0:03:42.2]}
12... Qd6 {[%clk 0:04:32.8]} 13. Qe2 {[%clk 0:03:29.6]} 13... Ng4 {[%clk
0:04:26.4]} 14. Bxg7 {[%clk 0:03:23]} 14... Qxh2# {[%clk 0:04:24]} 0-1

[Event "Live Chess"]
[Site "Chess.com"]
[Date "2023.05.20"]
[Round "-"]
[White "McSlash1"]
[Black "risinghelios"]
[Result "1/2-1/2"]
[WhiteElo "1996"]
[BlackElo "1908"]
[TimeControl "300"]
[EndTime "15:42:28 PDT"]
[Termination "Game drawn - insufficient material"]

1. e4 {[%clk 0:04:58.9]} 1... c5 {[%clk 0:04:59.1]} 2. Nc3 {[%clk 0:04:57.6]}
2... Nc6 {[%clk 0:04:59]} 3. f4 {[%clk 0:04:57.3]} 3... e5 {[%clk 0:04:58.2]} 4.
Bc4 {[%clk 0:04:54.1]} 4... exf4 {[%clk 0:04:56.9]} 5. d3 {[%clk 0:04:53.6]}
5... Nf6 {[%clk 0:04:55.5]} 6. Nf3 {[%clk 0:04:52.8]} 6... Be7 {[%clk
0:04:53.2]} 7. Bxf4 {[%clk 0:04:49.3]} 7... O-O {[%clk 0:04:51.3]} 8. O-O {[%clk
0:04:48.5]} 8... a6 {[%clk 0:04:50.4]} 9. Qe1 {[%clk 0:04:46.2]} 9... b5 {[%clk
0:04:49.3]} 10. Bb3 {[%clk 0:04:45.8]} 10... Qb6 {[%clk 0:04:48.7]} 11. Kh1
{[%clk 0:04:42.1]} 11... Bb7 {[%clk 0:04:46.6]} 12. Ng5 {[%clk 0:04:39.9]} 12...
h6 {[%clk 0:04:44.8]} 13. Nf3 {[%clk 0:04:25.3]} 13... a5 {[%clk 0:04:40.4]} 14.
Nd5 {[%clk 0:04:22]} 14... Nxd5 {[%clk 0:04:38.4]} 15. Bxd5 {[%clk 0:04:21.9]}
15... Rac8 {[%clk 0:04:27.2]} 16. Qg3 {[%clk 0:04:18.8]} 16... Kh7 {[%clk
0:04:23]} 17. Ne5 {[%clk 0:04:13.5]} 17... Nxe5 {[%clk 0:04:19.4]} 18. Bxe5
{[%clk 0:04:13.4]} 18... f6 {[%clk 0:04:15.5]} 19. Bxb7 {[%clk 0:04:11.4]} 19...
Qxb7 {[%clk 0:04:09.8]} 20. Bf4 {[%clk 0:04:10]} 20... d5 {[%clk 0:04:06.3]} 21.
exd5 {[%clk 0:04:07.1]} 21... Qxd5 {[%clk 0:04:06.2]} 22. Rae1 {[%clk
0:04:05.9]} 22... Rce8 {[%clk 0:04:04]} 23. Qf2 {[%clk 0:03:56.2]} 23... c4
{[%clk 0:03:56.4]} 24. dxc4 {[%clk 0:03:48.9]} 24... Qxc4 {[%clk 0:03:56.3]} 25.
b3 {[%clk 0:03:48.6]} 25... Qc6 {[%clk 0:03:50.9]} 26. h3 {[%clk 0:03:40.1]}
26... Bc5 {[%clk 0:03:48.3]} 27. Be3 {[%clk 0:03:37.6]} 27... Bxe3 {[%clk
0:03:45]} 28. Rxe3 {[%clk 0:03:36.3]} 28... Rxe3 {[%clk 0:03:43.2]} 29. Qxe3
{[%clk 0:03:36.2]} 29... Re8 {[%clk 0:03:42.4]} 30. Qd3+ {[%clk 0:03:33.4]}
30... Qe4 {[%clk 0:03:41.3]} 31. Qxb5 {[%clk 0:03:27.3]} 31... Qe2 {[%clk
0:03:36.5]} 32. Qxe2 {[%clk 0:03:23.1]} 32... Rxe2 {[%clk 0:03:36.4]} 33. Rc1
{[%clk 0:03:22.6]} 33... Kg6 {[%clk 0:03:34.7]} 34. c4 {[%clk 0:03:22.1]} 34...
Rxa2 {[%clk 0:03:33.6]} 35. c5 {[%clk 0:03:20.4]} 35... Rd2 {[%clk 0:03:32]} 36.
c6 {[%clk 0:03:16.9]} 36... Rd8 {[%clk 0:03:31.4]} 37. Rc5 {[%clk 0:03:14.3]}
37... Kf7 {[%clk 0:03:30]} 38. Rxa5 {[%clk 0:03:13.4]} 38... Rc8 {[%clk
0:03:29.7]} 39. Rc5 {[%clk 0:03:12.7]} 39... Ke6 {[%clk 0:03:28.9]} 40. b4
{[%clk 0:03:11.5]} 40... Kd6 {[%clk 0:03:28.2]} 41. Rc4 {[%clk 0:02:55.2]} 41...
Rxc6 {[%clk 0:03:26.8]} 42. Rg4 {[%clk 0:02:54]} 42... g5 {[%clk 0:03:24.7]} 43.
h4 {[%clk 0:02:53.4]} 43... h5 {[%clk 0:03:22.7]} 44. Re4 {[%clk 0:02:42.5]}
44... g4 {[%clk 0:03:14.8]} 45. Rf4 {[%clk 0:02:40.6]} 45... Ke5 {[%clk
0:03:12.2]} 46. g3 {[%clk 0:02:39.4]} 46... f5 {[%clk 0:03:06.2]} 47. Kg2 {[%clk
0:02:37.8]} 47... Rc2+ {[%clk 0:03:04.3]} 48. Kf1 {[%clk 0:02:37.2]} 48... Rc3
{[%clk 0:03:02.9]} 49. Kf2 {[%clk 0:02:35.9]} 49... Rc2+ {[%clk 0:03:01.1]} 50.
Ke1 {[%clk 0:02:34.7]} 50... Rc3 {[%clk 0:03:00]} 51. Kf2 {[%clk 0:02:33.9]}
51... Rd3 {[%clk 0:02:56]} 52. Rc4 {[%clk 0:02:29.8]} 52... Rb3 {[%clk 0:02:49]}
53. Rc5+ {[%clk 0:02:26.8]} 53... Ke4 {[%clk 0:02:47.6]} 54. b5 {[%clk
0:02:22.6]} 54... Rb2+ {[%clk 0:02:45]} 55. Kg1 {[%clk 0:02:21.9]} 55... Kf3
{[%clk 0:02:44.1]} 56. Rc3+ {[%clk 0:02:20.7]} 56... Ke4 {[%clk 0:02:42.4]} 57.
Rc5 {[%clk 0:02:18.1]} 57... f4 {[%clk 0:02:36.3]} 58. Rc4+ {[%clk 0:02:13.2]}
58... Ke3 {[%clk 0:02:32.1]} 59. gxf4 {[%clk 0:02:10.3]} 59... g3 {[%clk
0:02:28.2]} 60. f5 {[%clk 0:02:05.5]} 60... Rxb5 {[%clk 0:02:20]} 61. Kg2 {[%clk
0:01:58.8]} 61... Rxf5 {[%clk 0:02:15.6]} 62. Kxg3 {[%clk 0:01:58.2]} 62... Rf3+
{[%clk 0:02:14.4]} 63. Kh2 {[%clk 0:01:56.7]} 63... Rf4 {[%clk 0:02:13.7]} 64.
Rc3+ {[%clk 0:01:55.3]} 64... Kf2 {[%clk 0:02:11.3]} 65. Kh3 {[%clk 0:01:54.1]}
65... Rf3+ {[%clk 0:02:07.5]} 66. Rxf3+ {[%clk 0:01:52.4]} 66... Kxf3 {[%clk
0:02:07.4]} 67. Kh2 {[%clk 0:01:51.4]} 67... Kg4 {[%clk 0:02:07.3]} 68. Kg2
{[%clk 0:01:50.5]} 68... Kxh4 {[%clk 0:02:07.2]} 69. Kh2 {[%clk 0:01:50.4]}
69... Kg4 {[%clk 0:02:06.6]} 70. Kg2 {[%clk 0:01:50.2]} 70... h4 {[%clk
0:02:06.5]} 71. Kh2 {[%clk 0:01:50]} 71... h3 {[%clk 0:02:05.9]} 72. Kg1 {[%clk
0:01:49.1]} 72... Kg3 {[%clk 0:02:05.2]} 73. Kh1 {[%clk 0:01:49]} 73... Kh4
{[%clk 0:02:02.3]} 74. Kh2 {[%clk 0:01:47.5]} 74... Kg4 {[%clk 0:02:02.2]} 75.
Kh1 {[%clk 0:01:46.3]} 75... h2 {[%clk 0:02:02.1]} 76. Kxh2 {[%clk 0:01:44.1]}
1/2-1/2

[Event "Live Chess"]
[Site "Chess.com"]
[Date "2023.05.20"]
[Round "-"]
[White "Singapourfeuj"]
[Black "karimghalambaz"]
[Result "1-0"]
[WhiteElo "2202"]
[BlackElo "1270"]
[TimeControl "300"]
[EndTime "15:42:39 PDT"]
[Termination "Singapourfeuj won on time"]

1. d4 {[%clk 0:04:59.4]} 1... e5 {[%clk 0:04:54.9]} 2. dxe5 {[%clk 0:04:58.4]}
2... Nc6 {[%clk 0:04:50.9]} 3. Nf3 {[%clk 0:04:57.5]} 3... Qe7 {[%clk
0:04:49.2]} 4. e3 {[%clk 0:04:54.4]} 4... Nxe5 {[%clk 0:04:46.6]} 5. Nbd2 {[%clk
0:04:51.2]} 5... Nxf3+ {[%clk 0:04:42.5]} 6. Nxf3 {[%clk 0:04:49.4]} 6... Nf6
{[%clk 0:04:40.8]} 7. Bd3 {[%clk 0:04:48.3]} 7... d5 {[%clk 0:04:37.2]} 8. O-O
{[%clk 0:04:47.2]} 8... g6 {[%clk 0:04:29.7]} 9. c4 {[%clk 0:04:45.3]} 9... dxc4
{[%clk 0:04:27.8]} 10. Bxc4 {[%clk 0:04:44.4]} 10... Bg7 {[%clk 0:04:22.8]} 11.
Qb3 {[%clk 0:04:40.1]} 11... O-O {[%clk 0:04:15.8]} 12. Bd2 {[%clk 0:04:39.2]}
12... a6 {[%clk 0:04:08.5]} 13. Rac1 {[%clk 0:04:37.1]} 13... c6 {[%clk
0:04:00.3]} 14. Bb4 {[%clk 0:04:35.6]} 14... Qe8 {[%clk 0:03:47.8]} 15. Bxf8
{[%clk 0:04:33.3]} 15... Qxf8 {[%clk 0:03:36.8]} 16. Ng5 {[%clk 0:04:31.2]}
16... b5 {[%clk 0:03:25.1]} 17. Bxf7+ {[%clk 0:04:29.8]} 17... Kh8 {[%clk
0:03:14.8]} 18. Be6 {[%clk 0:04:28]} 18... h6 {[%clk 0:02:42.8]} 19. Nf7+ {[%clk
0:04:23.5]} 19... Kh7 {[%clk 0:02:15.3]} 20. Bxc8 {[%clk 0:04:19.6]} 20... Rxc8
{[%clk 0:02:07.7]} 21. Ne5 {[%clk 0:04:18.4]} 21... Qd6 {[%clk 0:01:42]} 22. Nf3
{[%clk 0:04:12.1]} 22... Nd5 {[%clk 0:01:29.6]} 23. Rfd1 {[%clk 0:04:06.2]}
23... Qf8 {[%clk 0:01:00.6]} 24. h3 {[%clk 0:04:01]} 24... Nb6 {[%clk
0:00:50.5]} 25. Qe6 {[%clk 0:03:56.3]} 25... Bxb2 {[%clk 0:00:32]} 26. Rxc6
{[%clk 0:03:54.1]} 26... Rxc6 {[%clk 0:00:26.6]} 27. Qxc6 {[%clk 0:03:53]} 27...
Nc4 {[%clk 0:00:18.8]} 28. Rd7+ {[%clk 0:03:51.1]} 28... Kh8 {[%clk 0:00:12.5]}
29. Nd4 {[%clk 0:03:49.3]} 29... Ne5 {[%clk 0:00:02.4]} 30. Qd5 {[%clk
0:03:42.2]} 1-0

[Event "Live Chess"]
[Site "Chess.com"]
[Date "2023.05.20"]
[Round "-"]
[White "lxbllngs"]
[Black "wot-not"]
[Result "0-1"]
[WhiteElo "1692"]
[BlackElo "1538"]
[TimeControl "300"]
[EndTime "15:42:45 PDT"]
[Termination "wot-not won on time"]

1. d4 {[%clk 0:04:57.8]} 1... Nf6 {[%clk 0:04:54.4]} 2. Bg5 {[%clk 0:04:56.7]}
2... d6 {[%clk 0:04:52.5]} 3. Bxf6 {[%clk 0:04:45]} 3... gxf6 {[%clk 0:04:50.1]}
4. e3 {[%clk 0:04:44.3]} 4... e5 {[%clk 0:04:49.1]} 5. Bc4 {[%clk 0:04:40.2]}
5... Be6 {[%clk 0:04:46.8]} 6. Bxe6 {[%clk 0:04:37.1]} 6... fxe6 {[%clk
0:04:46]} 7. Qh5+ {[%clk 0:04:36.7]} 7... Kd7 {[%clk 0:04:43.6]} 8. dxe5 {[%clk
0:04:34.4]} 8... fxe5 {[%clk 0:04:42.6]} 9. Nc3 {[%clk 0:04:32.5]} 9... Be7
{[%clk 0:04:15]} 10. O-O-O {[%clk 0:04:28.9]} 10... Nc6 {[%clk 0:04:13.8]} 11.
Nf3 {[%clk 0:04:27.5]} 11... Qe8 {[%clk 0:04:11.4]} 12. Nxe5+ {[%clk 0:04:08.9]}
12... Nxe5 {[%clk 0:04:06.5]} 13. Qxe5 {[%clk 0:04:08.8]} 13... Rd8 {[%clk
0:04:00.6]} 14. Nb5 {[%clk 0:03:44.2]} 14... a6 {[%clk 0:03:55.8]} 15. Nc3
{[%clk 0:03:25.8]} 15... Qg6 {[%clk 0:03:52.7]} 16. Ne4 {[%clk 0:03:08.7]} 16...
Kc8 {[%clk 0:03:48.5]} 17. Qd4 {[%clk 0:02:56.3]} 17... Qxg2 {[%clk 0:03:44]}
18. Rhg1 {[%clk 0:02:55.5]} 18... Qxh2 {[%clk 0:03:42.4]} 19. Qa7 {[%clk
0:02:46.8]} 19... Qe5 {[%clk 0:03:11.8]} 20. f3 {[%clk 0:01:35.8]} 20... Bf6
{[%clk 0:02:03.3]} 21. Nxf6 {[%clk 0:01:25.6]} 21... Qxf6 {[%clk 0:02:01.9]} 22.
Qa8+ {[%clk 0:01:24.3]} 22... Kd7 {[%clk 0:02:01.1]} 23. Qxb7 {[%clk 0:01:21]}
23... Rb8 {[%clk 0:01:59.7]} 24. Rxd6+ {[%clk 0:00:55.3]} 24... Kxd6 {[%clk
0:01:52.8]} 25. Rd1+ {[%clk 0:00:53.4]} 25... Ke5 {[%clk 0:01:50.4]} 26. f4+
{[%clk 0:00:52.8]} 26... Kf5 {[%clk 0:01:48.5]} 27. e4+ {[%clk 0:00:44.3]} 27...
Kg6 {[%clk 0:01:45.3]} 28. f5+ {[%clk 0:00:41.6]} 28... Kf7 {[%clk 0:01:39.6]}
29. Qxc7+ {[%clk 0:00:39.4]} 29... Qe7 {[%clk 0:01:19.8]} 30. fxe6+ {[%clk
0:00:36.1]} 30... Kxe6 {[%clk 0:01:15.7]} 31. Qc4+ {[%clk 0:00:31.3]} 31... Kf6
{[%clk 0:01:10.1]} 32. Rf1+ {[%clk 0:00:18.2]} 32... Kg7 {[%clk 0:01:07.7]} 33.
Qd4+ {[%clk 0:00:17.1]} 33... Kg8 {[%clk 0:01:02.6]} 34. Qd5+ {[%clk 0:00:14.2]}
34... Kg7 {[%clk 0:00:57.6]} 35. Rg1+ {[%clk 0:00:08.9]} 35... Kf8 {[%clk
0:00:51.4]} 36. Qf5+ {[%clk 0:00:03.9]} 36... Qf7 {[%clk 0:00:47.2]} 37. Qc5+
{[%clk 0:00:03]} 37... Ke8 {[%clk 0:00:43.7]} 38. Qe5+ {[%clk 0:00:02.3]} 38...
Qe7 {[%clk 0:00:41.8]} 39. Qh5+ {[%clk 0:00:00.5]} 39... Kd7 {[%clk 0:00:40.5]}
0-1

[Event "Live Chess"]
[Site "Chess.com"]
[Date "2023.05.20"]
[Round "-"]
[White "Long1968"]
[Black "EdenHazard8"]
[Result "0-1"]
[WhiteElo "1178"]
[BlackElo "2074"]
[TimeControl "300"]
[EndTime "15:43:00 PDT"]
[Termination "EdenHazard8 won on time"]

1. e4 {[%clk 0:04:58.2]} 1... e5 {[%clk 0:04:59.5]} 2. f4 {[%clk 0:04:56]} 2...
Nc6 {[%clk 0:04:59.4]} 3. Bc4 {[%clk 0:04:52.7]} 3... exf4 {[%clk 0:04:57.7]} 4.
Nf3 {[%clk 0:04:50.4]} 4... g5 {[%clk 0:04:55.6]} 5. h4 {[%clk 0:04:43.6]} 5...
g4 {[%clk 0:04:54.2]} 6. Ng5 {[%clk 0:04:40.3]} 6... Nh6 {[%clk 0:04:51.7]} 7.
O-O {[%clk 0:04:32.1]} 7... Bc5+ {[%clk 0:04:47.1]} 8. Kh1 {[%clk 0:04:22.2]}
8... Ne5 {[%clk 0:04:40.8]} 9. Bb3 {[%clk 0:04:10]} 9... Ng6 {[%clk 0:04:33.6]}
10. d4 {[%clk 0:04:03.2]} 10... Nxh4 {[%clk 0:04:29.4]} 11. dxc5 {[%clk
0:03:39.1]} 11... Qxg5 {[%clk 0:04:24.8]} 12. Bxf4 {[%clk 0:03:32.2]} 12... Qh5
{[%clk 0:04:21]} 13. Bh2 {[%clk 0:02:39.5]} 13... O-O {[%clk 0:03:54.8]} 14. Nd2
{[%clk 0:01:40.1]} 14... Qg5 {[%clk 0:03:43.8]} 15. g3 {[%clk 0:01:06.8]} 15...
Nf3 {[%clk 0:03:37.3]} 16. Nxf3 {[%clk 0:00:54.9]} 16... gxf3 {[%clk 0:03:37.2]}
17. Qxf3 {[%clk 0:00:46.9]} 17... Ng4 {[%clk 0:03:34.7]} 18. Bxf7+ {[%clk
0:00:17.3]} 18... Kh8 {[%clk 0:03:31.9]} 19. Qc3+ {[%clk 0:00:14.8]} 19... Qg7
{[%clk 0:03:29]} 20. Qxg7+ {[%clk 0:00:10.2]} 20... Kxg7 {[%clk 0:03:28.9]} 21.
Bb3 {[%clk 0:00:06.8]} 21... Nf2+ {[%clk 0:03:27.2]} 22. Kg2 {[%clk 0:00:02.3]}
22... Ng4 {[%clk 0:03:25.5]} 0-1

[Event "Live Chess"]
[Site "Chess.com"]
[Date "2023.05.20"]
[Round "-"]
[White "ShanthamGrarks"]
[Black "Cimon"]
[Result "0-1"]
[WhiteElo "1929"]
[BlackElo "1846"]
[TimeControl "300"]
[EndTime "15:43:07 PDT"]
[Termination "Cimon won by checkmate"]

1. d4 {[%clk 0:04:58.5]} 1... Nf6 {[%clk 0:04:58.2]} 2. Nc3 {[%clk 0:04:56.7]}
2... d6 {[%clk 0:04:54.1]} 3. e4 {[%clk 0:04:56]} 3... g6 {[%clk 0:04:53.1]} 4.
Bg5 {[%clk 0:04:54.5]} 4... Bg7 {[%clk 0:04:51.9]} 5. Be2 {[%clk 0:04:53.8]}
5... O-O {[%clk 0:04:50.2]} 6. h4 {[%clk 0:04:51.6]} 6... Nc6 {[%clk 0:04:44.2]}
7. Nf3 {[%clk 0:04:49.4]} 7... Nd7 {[%clk 0:04:42.4]} 8. h5 {[%clk 0:04:45]}
8... h6 {[%clk 0:04:40.5]} 9. hxg6 {[%clk 0:04:40.4]} 9... hxg5 {[%clk
0:04:38.1]} 10. gxf7+ {[%clk 0:04:40]} 10... Rxf7 {[%clk 0:04:33.8]} 11. Nxg5
{[%clk 0:04:37.9]} 11... Nxd4 {[%clk 0:04:14.8]} 12. Nxf7 {[%clk 0:04:21.7]}
12... Kxf7 {[%clk 0:04:10.2]} 13. Rh7 {[%clk 0:04:05.7]} 13... e5 {[%clk
0:04:00.9]} 14. Bh5+ {[%clk 0:03:59.6]} 14... Kg8 {[%clk 0:03:55.6]} 15. Bg6
{[%clk 0:03:56.8]} 15... Nf6 {[%clk 0:03:48.5]} 16. Rh1 {[%clk 0:03:41.6]} 16...
c6 {[%clk 0:03:24.1]} 17. Ne2 {[%clk 0:03:25]} 17... c5 {[%clk 0:03:03.5]} 18.
c3 {[%clk 0:03:21.4]} 18... Ne6 {[%clk 0:02:52.4]} 19. Bf5 {[%clk 0:03:18.8]}
19... Qb6 {[%clk 0:02:35.8]} 20. Rb1 {[%clk 0:03:02.7]} 20... Bd7 {[%clk
0:02:33]} 21. Ng3 {[%clk 0:02:55.4]} 21... Nf4 {[%clk 0:02:13.4]} 22. Bxd7
{[%clk 0:02:41.2]} 22... Nxd7 {[%clk 0:02:09.6]} 23. Qg4 {[%clk 0:02:22.3]}
23... Nf6 {[%clk 0:02:00.3]} 24. Qf3 {[%clk 0:02:14.9]} 24... Rd8 {[%clk
0:01:41.3]} 25. Nf5 {[%clk 0:02:13.3]} 25... d5 {[%clk 0:01:17.5]} 26. g3 {[%clk
0:02:08.9]} 26... dxe4 {[%clk 0:01:13.3]} 27. Qd1 {[%clk 0:01:35.7]} 27... Rxd1+
{[%clk 0:01:08.5]} 28. Rxd1 {[%clk 0:01:35.6]} 28... Nd3+ {[%clk 0:01:05.3]} 29.
Kf1 {[%clk 0:01:32.9]} 29... c4 {[%clk 0:01:01.4]} 30. Ne3 {[%clk 0:01:31.3]}
30... Nd5 {[%clk 0:00:51.9]} 31. Rxd3 {[%clk 0:01:25.4]} 31... cxd3 {[%clk
0:00:47.4]} 32. Nxd5 {[%clk 0:01:24.4]} 32... Qxb2 {[%clk 0:00:42.5]} 33. Kg2
{[%clk 0:01:14.9]} 33... Qxa2 {[%clk 0:00:37.8]} 34. Ne3 {[%clk 0:01:07.5]}
34... d2 {[%clk 0:00:36.2]} 35. Rd1 {[%clk 0:01:05.5]} 35... b5 {[%clk
0:00:34.5]} 36. Kf1 {[%clk 0:00:58.2]} 36... Bh6 {[%clk 0:00:33.1]} 37. Ng4
{[%clk 0:00:54.7]} 37... Kg7 {[%clk 0:00:31.3]} 38. Nxe5 {[%clk 0:00:53.4]}
38... Qc2 {[%clk 0:00:29.1]} 39. Ke2 {[%clk 0:00:51.5]} 39... a5 {[%clk
0:00:26.9]} 40. f4 {[%clk 0:00:41.2]} 40... exf3+ {[%clk 0:00:25.1]} 41. Nxf3
{[%clk 0:00:40.2]} 41... Qxc3 {[%clk 0:00:23.4]} 42. Nh4 {[%clk 0:00:35.3]}
42... Qe3+ {[%clk 0:00:21.5]} 43. Kf1 {[%clk 0:00:34.1]} 43... Kf6 {[%clk
0:00:17.9]} 44. g4 {[%clk 0:00:23.2]} 44... b4 {[%clk 0:00:16]} 45. g5+ {[%clk
0:00:22.2]} 45... Bxg5 {[%clk 0:00:15.1]} 46. Ng2 {[%clk 0:00:20.5]} 46... Qf3+
{[%clk 0:00:14.2]} 47. Kg1 {[%clk 0:00:19.7]} 47... Qxd1+ {[%clk 0:00:13.1]} 48.
Kh2 {[%clk 0:00:19.3]} 48... Qe2 {[%clk 0:00:11.9]} 49. Kh1 {[%clk 0:00:17.5]}
49... d1=Q+ {[%clk 0:00:10.1]} 50. Kh2 {[%clk 0:00:17]} 50... Qdd2 {[%clk
0:00:09]} 51. Kg1 {[%clk 0:00:13.2]} 51... Qxg2# {[%clk 0:00:07.6]} 0-1